Cogmind - Beta 15 @@@ ROGUE MODE // 2025.07.07 @ 09:00:48 Player: beans Result: Destroyed by D-53 Grenadier with Mini Grenade Launcher Performance ------------- Evolutions (0) 0 Regions Visited (2) 400 Robots Destroyed (18) 90 Value Destroyed (387) 387 Prototype IDs (0) 0 Alien Tech Used (0) 0 Bonus (0) 0 TOTAL SCORE: 877 Bonus ------- None Cogmind --------- Core Integrity 0/250 Matter 82/300 Energy 100/100 System Corruption 0% Temperature Cool (10) Movement Core (50) Location -10/Mines Parts ------- > --- POWER (1) -------- (None) > --- PROPULSION (2) --- (None) > --- UTILITY (2) ------ (None) > --- WEAPON (2) ------- (None) > --- INVENTORY (5) ---- EM Pulse Gun Beam Rifle Beam Rifle Mini Grenade Launcher Mini Grenade Launcher Peak State ------------ > --- POWER ------------ Ion Engine > --- PROPULSION ------- Light Treads Light Treads > --- UTILITY ---------- (None) > --- WEAPON ----------- Beam Rifle Beam Rifle > --- INVENTORY -------- EM Pulse Gun EM Pulse Gun [Rating: 7] Favorites ----------- Power Ion Engine Engine Ion Engine Propulsion Light Treads Treads Light Treads Utility None Weapon EM Pulse Gun Energy Gun EM Pulse Gun Launcher Mini Grenade Launcher Build | -11 -10 -10 ------- Run | Yrd Mat Min Slots Evolved . | . . . Power . | . . . Propulsion . | . . . Utility . | . . . Weapon . | . . . Parts Attached 9 | 5 4 . Power 1 | 1 . . Engine 1 | 1 . . Core . | . . . Reactor . | . . . Propulsion 2 | 2 . . Treads 2 | 2 . . Leg . | . . . Wheel . | . . . Hover . | . . . Flight . | . . . Utility . | . . . Device . | . . . Storage . | . . . Processor . | . . . Hackware . | . . . Protection . | . . . Artifact . | . . . Weapon 6 | 2 4 . Energy Gun 4 | 2 2 . Energy Cannon . | . . . Ballistic Gun . | . . . Ballistic Cannon . | . . . Launcher 2 | . 2 . Special Weapon . | . . . Impact Weapon . | . . . Slashing Weapon . | . . . Piercing Weapon . | . . . Special Melee Weapon . | . . . Unidentified Prototypes . | . . . Parts Lost 6 | . 3 3 Power 1 | . 1 . Propulsion 2 | . 1 1 Utility . | . . . Weapon 3 | . 1 2 Highest Loss Streak 3 | . 3 2 To Critical Strikes . | . . . Average Backups 2 | . 1 5 Power . | . . . Propulsion . | . . . Utility . | . . . Weapon 2 | . 1 5 Tool/Special . | . . . Unused Backups . | . . . Power . | . . . Propulsion . | . . . Utility . | . . . Weapon . | . . . Tool/Special . | . . . Average Slot Usage (%) 46 | . 51 26 Engine 5 | . 6 . Treads 16 | . 19 . Energy Gun 12 | . 15 . Launcher 11 | . 8 26 Peak Build Rating 7 | 5 7 4 Average Rating 4 | 3 4 3 On Entrance 3 | . 5 5 Naked Turns . | . . . Heaviest Build 11 | 9 11 2 Greatest Support 40 | 40 40 3 Greatest Overweight (x) . | . . . Average Overweight (x) . | . . . Largest Inventory Capacity 5 | 5 5 5 Average Capacity 5 | 5 5 5 Most Carried 5 | 5 5 5 Average Carried 2 | . 1 5 Final Capacity 5 | 5 5 5 Final Carried 5 | . 5 5 Class Distribution -------------------- 100% | Mutant Dominant Class ---------------- Mutant | -10/Materials Mutant | -10/Mines Resources | -11 -10 -10 ----------- Run | Yrd Mat Min Matter Collected 317 | 225 92 . Remotely . | . . . Salvage Created 522 | . 488 34 Parts 32 | . 24 8 Haulers Intercepted 2 | . 2 . Recyclers Shooed . | . . . Parts Field Recycled . | . . . Retrieved Matter . | . . . Parts Self-Destructed . | . . . Prevented . | . . . Kills | -11 -10 -10 ------- Run | Yrd Mat Min Combat Hostiles Destroyed 13 | . 6 7 Guns 3 | . 3 . AOE 9 | . 2 7 Classes Destroyed 8 | . 6 2 Builder 1 | . 1 . Hauler 2 | . 2 . Recycler 1 | . 1 . Operator 1 | . 1 . Watcher 1 | . 1 . Swarmer 6 | . . 6 Grunt 6 | . 6 . Assembled 1 | . . 1 Best Kill Streak 6 | . 6 6 Combat Bots Only 6 | . 5 6 Max Kills in Single Turn 2 | . 2 2 Gunslinging . | . . . Exploded 2 | . 1 2 Melee . | . . . Uniques/NPCs Destroyed . | . . . Combat | -11 -10 -10 -------- Run | Yrd Mat Min Hostile Shots Fired 70 | . 58 12 Missed 22 | . 19 3 Hits 48 | . 39 9 Projectile 48 | . 39 9 AOE 1 | . . 1 Critical Strikes 2 | . 2 . Damage Taken 817 | . 556 261 Core 257 | . 87 170 Absorbed by Shields . | . . . Core Remaining (%) 100 | 100 . . Volleys Fired 43 | . 37 6 Largest 2 | . 2 2 Hottest 112 | . 112 60 Shots Fired 78 | . 66 12 Gun 54 | . 54 . Cannon . | . . . Launcher 24 | . 12 12 Special . | . . . Kinetic . | . . . Thermal 14 | . 14 . Explosive 24 | . 12 12 Electromagnetic 40 | . 40 . Robot Hit Streak 9 | . 7 9 Robot Miss Streak 3 | . 3 . Penetration Max . | . . . Secondary Targets 1 | . 1 . Max Gunslinging Chain 1 | . 1 . Shots Hit Robots 35 | . 33 2 Core Hits 27 | . 15 12 Critical Kills . | . . . Critical Parts Destroyed . | . . . Critical Strikes 1 | . 1 . Burn 1 | . 1 . Melee Attacks . | . . . Impact . | . . . Slashing . | . . . Piercing . | . . . Sneak Attacks . | . . . Combat Hostiles . | . . . Follow-up Attacks . | . . . Damage Inflicted 1210 | . 840 370 Guns 474 | . 474 . Cannons . | . . . Explosions 736 | . 366 370 Melee . | . . . Ramming . | . . . Kinetic . | . . . Thermal 228 | . 228 . Explosive 641 | . 271 370 Electromagnetic 341 | . 341 . Impact . | . . . Slashing . | . . . Piercing . | . . . Highest Corruption . | . . . Average Corruption . | . . . Corruption Purged . | . . . Corruption Blocked . | . . . Overload Shots . | . . . Overflow Damage 60 | . 46 14 Projectiles . | . . . Explosions 60 | . 46 14 Melee . | . . . Knockbacks . | . . . Impact . | . . . Kinetic . | . . . Secondary . | . . . Self-Inflicted Damage 185 | . 45 140 Shots 6 | . 2 4 Rammed . | . . . Targets Rammed . | . . . Kicked . | . . . Crushed . | . . . Highest Temperature 370 | . 370 15 Average Temperature 208 | . 211 12 Received Heat Transfer 321 | . 321 . Effects 3 | . 3 . Shutdowns 1 | . 1 . Energy Bleed 1 | . 1 . Damage (minor) 1 | . 1 . Siege Activations . | . . . Martial Activations . | . . . Shielding Activations . | . . . Robots Disrupted . | . . . Combat Hostiles . | . . . Robots Corrupted 1 | . 1 . Combat Hostiles 1 | . 1 . Parts Fried 3 | . 3 . Impact Corruptions . | . . . Robots Melted . | . . . Combat Hostiles . | . . . Parts Melted 1 | . 1 . Heat Transferred 507 | . 507 . Parts Sabotaged . | . . . Parts Stolen . | . . . Parts Stripped . | . . . Power Chain Reactions 1 | . 1 . Alert | -11 -10 -10 ------- Run | Yrd Mat Min Maximum Alert Level 1 | . . 1 Low Security (%) 94 | 100 100 67 Level 1 5 | . . 32 Level 2 . | . . . Level 3 . | . . . Level 4 . | . . . Level 5 . | . . . High Security . | . . . Max Security . | . . . Peak Influence 218 | . 152 218 Initial 52 | . . 52 Average 64 | . 48 186 Influence Increases 522 | . 309 213 Destroy 0b10 Robot/C 240 | . 120 120 Destroy 0b10 Robot/NC 30 | . 30 . Destroy Leader 56 | . 36 20 Disable Machine 75 | . 75 . Destroy Structure 121 | . 48 73 Influence Decreases 327 | . 173 154 Entered New Map 84 | . . 84 Time Decay 183 | . 143 40 Lost Part 60 | . 30 30 Squads Dispatched 1 | . 1 . Investigation . | . . . Extermination . | . . . Reinforcement 1 | . 1 . Assault . | . . . Garrison . | . . . Intercept . | . . . Searches Triggered . | . . . Construction Impeded . | . . . Haulers Reinforced . | . . . Active Scanning Responses . | . . . Cargo Convoy Interrupts . | . . . Stealth | -11 -10 -10 --------- Run | Yrd Mat Min Distress Signals . | . . . Communications Jammed . | . . . Distress Signals . | . . . Times Spotted 26 | . 7 19 Peak Tracking Total 3 | . 2 3 Tactical Retreats . | . . . Traps | -11 -10 -10 ------- Run | Yrd Mat Min Traps Triggered . | . . . Indirectly . | . . . Trap Hack Attempts . | . . . Triggered . | . . . Disarmed . | . . . Reprogrammed . | . . . Reused . | . . . Traps Extracted . | . . . Installed . | . . . Triggered . | . . . Machines | -11 -10 -10 ---------- Run | Yrd Mat Min Machines Disabled 5 | . 5 . Max in Single Turn 2 | . 2 . Machines Repaired . | . . . Machines Dismantled . | . . . Machines Sabotaged . | . . . Overloaded Fab Kills . | . . . Hacking | -11 -10 -10 --------- Run | Yrd Mat Min Machines Accessed . | . . . Terminals . | . . . Fabricators . | . . . Repair Stations . | . . . Recycling Units . | . . . Scanalyzers . | . . . Garrison Access . | . . . Total Hacks . | . . . Successful . | . . . Failed . | . . . Catastrophic . | . . . Database Lockouts . | . . . Manual . | . . . Terminals . | . . . Fabricators . | . . . Repair Stations . | . . . Recycling Units . | . . . Scanalyzers . | . . . Garrison Access . | . . . Terminal Hacks . | . . . Fabricator Hacks . | . . . Repair Station Hacks . | . . . Recycling Unit Hacks . | . . . Scanalyzer . | . . . Garrison Access Hacks . | . . . Unauthorized Hacks . | . . . Terminals . | . . . Fabricators . | . . . Repair Stations . | . . . Recycling Units . | . . . Scanalyzers . | . . . Garrison Access . | . . . Data Cores Recovered . | . . . Used . | . . . Hacking Detections . | . . . Full Trace Events . | . . . Feedback Events . | . . . Feedback Blocked . | . . . Robot Schematics Acquired . | . . . Robots Built . | . . . Authchips . | . . . Time . | . . . Total Robot Build Rating . | . . . Part Schematics Acquired . | . . . Parts Built . | . . . Authchips . | . . . Time . | . . . Total Part Build Rating . | . . . Parts Repaired . | . . . Time . | . . . Parts Recycled . | . . . Recycled Matter . | . . . Retrieved Matter . | . . . Retrieved Components . | . . . Parts Scanalyzed . | . . . Part Schematics Acquired . | . . . Parts Damaged . | . . . Bothacking | -11 -10 -10 ------------ Run | Yrd Mat Min Used RIF Installer . | . . . Robots Hacked . | . . . Non-combat . | . . . Combat . | . . . Robot Hacks Applied . | . . . Relay Couplers Released . | . . . Fabnet Peak Effective % . | . . . Robots Rewired . | . . . Allies Hacked . | . . . Hacks Repelled . | . . . Allies | -11 -10 -10 -------- Run | Yrd Mat Min Total Allies . | . . . Largest Group . | . . . Highest-Rated Group . | . . . Highest-Rated Ally . | . . . Total Orders . | . . . Ally Attacks . | . . . Total Damage . | . . . Kills . | . . . Allies Corrupted . | . . . Allies Melted . | . . . Intel | -11 -10 -10 ------- Run | Yrd Mat Min Active Infowar (turns) . | . . . Robot Analysis Total . | . . . Derelict Logs Recovered . | . . . Drone Launches . | . . . Drone Recoveries . | . . . Exploration | -11 -10 -10 ------------- Run | Yrd Mat Min Turns Passed 580 | 61 428 91 Spaces Moved 368 | 47 179 142 Core 163 | 21 . 142 Treads 205 | 26 179 . Legs . | . . . Wheels . | . . . Hover . | . . . Flight . | . . . Fastest Speed 50 | 50 160 50 Average Speed 111 | 110 160 50 Slowest Speed 160 | 160 160 50 Overloaded Moves . | . . . Propulsion Burnouts . | . . . Robots Hopped . | . . . Potential Cave-ins . | . . . Cave-ins Triggered . | . . . Exploration Rate (%) 26 | 3 32 45 Regions Visited 2 Branch Regions 1 Pre-discovered Areas . | . . . Known Exits Taken . | . . . Unknown Exits Taken 2 | 1 1 . Scrap Searched . | . . . Spaces Dug 42 | . . 42 Terrain Destroyed 156 | . 49 107 Melee . | . . . Projectile . | . . . AOE 156 | . 49 107 Terrain Rammed . | . . . Walls Destroyed . | . . . Machines Disabled . | . . . Actions | -11 -10 -10 --------- Run | Yrd Mat Min Total 459 | 56 252 151 Wait 28 | . 25 3 Move 366 | 46 178 142 Hop . | . . . Pick Up 11 | 5 6 . Fast Attach . | . . . Attach 6 | 5 1 . Detach . | . . . Swap 5 | . 5 . Drop . | . . . Fire 43 | . 37 6 Melee . | . . . Ram . | . . . Kick . | . . . Crush . | . . . Escape Stasis . | . . . Rewire . | . . . Trap . | . . . Miscellaneous . | . . . Route ------- -11/Scrapyard -10/Materials -10/Mines History --------- Turn | Location | Event 3 | -11/Scrapyard | Discovered new exit (range 15) 62 | -11/Scrapyard | Entered Materials 291 | -10/Materials | Lost 3 parts (1p1n1w) 303 | -10/Materials | Build established: Mutant 345 | -10/Materials | Discovered new exit (range 16) 490 | -10/Materials | Entered Mines 566 | -10/Mines | Assembled infested the area 580 | -10/Mines | Core integrity fell below 50% 580 | -10/Mines | Core integrity fell below 20% 581 | -10/Mines | Destroyed by D-53 Grenadier with Mini Grenade Launcher Last Messages --------------- Unit into recycling unit. The unstable cave ceiling collapses. LOCATION=UNKNOWN GOAL=ESCAPE Something is scanning the area. S-10 Pest destroyed. Lgt. Treads destroyed. Destroyed Lgt. Treads. S-10 Pest destroyed. The unstable cave ceiling collapses. S-10 Pest destroyed. The unstable cave ceiling collapses. ALERT: Infestation in the mines, dispatching Demolisher response squad. C-30 ARC bursts open, deploying its payload. The unstable cave ceiling collapses. as-34712 destroyed. Mni. Grenade Launcher destroyed. Destroyed Mni. Grenade Launcher. Mni. Grenade Launcher destroyed. Map ----- +----------------------------------------------------+ | ?# ###??????????????????????????????????????? | | ?# ##????????????????????????????????????????? | | ?## #????????? ???????????????????????????????? | | ??# #???????# ??????????????????????????????? | | ?## ##????# ???????????????????????????????? | | ?# ##??# #????????????????????????????????? | | ?# ### #?????????????????????????????????? | | ?## #??????????????????????????????????? | | ### #??????????????????????????????????? | | ##??????????????????????????????????? | | ##???????????????????????????????????? | | ### ###????????????????????????????????????? | | ?## ##??????????????????????????????????????? | | ?# ##???????????????????????????????????????? | | ## #????????????????????????????????????????? | | #????????????????????????????????????????? | | ##????????????????????????????????????????? | | ### ##?????????????????????????????????????????? | | ?## #################?????####?#?#?????????????? | | ?# #???? # # #?????????????? | | ?# ############### #???? % ??????????????? | | ?## ##?????????????# #???# ? ####?????????? | | ??####??????????????# #?## # ?????????? | | ????????????????????# ### ????????????? | | ?????????????######## # #????????????????? | | ?????????# @ d #????????????????? | | ?????????????########## d ##????????????????? | | ??????????????????????## a ##?????????????????? | | ??????????????????????? #??????????????????? | | ?????????????????????? $ #??????????????????? | | ?????????????????????# a # #??????????????????? | | ?????????????????????#aa#?### #??????????????????? | | ?????????????????????# a????? #??????????????????? | | ?????????????????????#aa??????#??????????????????? | | ?????????????????????aa ?????????????????????????? | | ????????????????????? a??????????????????????????? | | ???????????????????? a??????????????????????????? | | ???????????????????? a??????????????????????????? | | ???????????????????# #??????????????????????????? | | ?????????????????????#???????????????????????????? | | ?????????????????????????????????????????????????? | | ?????????????????????????????????????????????????? | | | | | | | | | | | | | | | | | +----------------------------------------------------+ Best States ------------- Heat Dissipation 25 Energy Generation 10 Energy Capacity 250 Matter Stores 300 Matter Capacity 300 Sight Range 16 Terrain Scan Density 10 Evasion (%) 50 Recoil Reduction 2 Item Schematics ----------------- None Robot Schematics ------------------ None Fabricated ------------ Nothing Repaired ---------- Nothing Alien Tech Used ----------------- None Achievements -------------- None Challenges ------------ None Game ------ Seed SigixSpikedSteel Manual? 0 Play Time 00:07:21 Cumulative 40.5 hours Start 2025.07.07 @ 08:22:56 End 2025.07.07 @ 09:00:48 Sessions 1 Manual Loads 0 Difficulty Rogue Special Mode None Game No. 191 Rogue 191 Adventurer 0 Explorer 0 Win Type - Total 0 Types 0/0/0/0/0/0/0/0/0/0 Lore% 31 Gallery% 25 Achievement% 21 Wizard Run 0 Options --------- Layout 2 ASCII 0 Keyboard 0 Movement Mouse Keybinds 0 Fullscreen 1 Font 24/Smallcaps Map View 50x44 Zoom Use 0% Tactical HUD 0 Map Filters NONE Filters NONE Steam 1 RUN: 7bcc2f3d-ca3f-44a1-8fb8-242e23c93651